fUSD/lending_fUSD_20260528
["ID","MTS","AMOUNT","RATE_DAILY","PERIOD"]
[423177399,1779905912000,-16400.0,0.000119,4]
[423177401,1779905912000,-150.31217314,0.00012,2]
[423177402,1779905912000,500.0,0.00011595,2]
[423177403,1779905912000,500.0,0.00011595,2]
[423177404,1779905912000,500.0,0.00011595,2]
[423177395,1779905912000,-5000.0,0.000117,2]
[423177405,1779905913000,350.88122694,0.00011595,2]
[423177409,1779906111000,-1200.0,0.00010299,2]
[423177410,1779906111000,-8177.3700839,0.000103,2]
[423177413,1779906111000,-810.0480063,0.000115,2]
[423177412,1779906111000,-1680.0,0.00011329,2]
[423177411,1779906111000,-300.0,0.00011328,2]
[423177416,1779906111000,-150.0,0.00011594,2]
[423177414,1779906111000,-682.79763891,0.00011585,2]
[423177417,1779906111000,-637.86067278,0.00011594,2]
[423177419,1779906111000,-500.0,0.00011594,2]
[423177418,1779906111000,-205.65346966,0.00011594,2]
[423177415,1779906111000,-284.0,0.00011594,2]
[423177428,1779906112000,-330.0,0.00012,3]
[423177426,1779906112000,-173.0,0.000118,2]
[423177427,1779906112000,-2854.0,0.00011935,2]
[423177425,1779906112000,-1500000.0,0.000118,2]
[423177424,1779906112000,-2124.65,0.00011724,2]
[423177422,1779906112000,-12777.74145039,0.000117,2]
[423177420,1779906112000,-184.8807108,0.00011594,2]
[423177423,1779906112000,-261.12649626,0.000117,2]
[423177421,1779906112000,-956224.6466531,0.00011595,2]
[423177429,1779906118000,152.0,0.000276,120]
[423177431,1779906158000,151.68364513,9.04e-05,2]
[423177430,1779906158000,-1803.27410931,0.00012017,2]
[423177432,1779906181000,-864.3,0.00011964,2]
[423177433,1779906235000,-150.0,0.00011605,2]
[423177434,1779906246000,-321.37589069,0.00012017,2]
[423177435,1779906288000,-10753.5784189,0.0001168,2]
[423177441,1779906314000,-278.73,0.00011948,2]
[423177439,1779906314000,-336.80736356,0.000119,2]
[423177440,1779906314000,-3489.95,0.00011948,2]
[423177438,1779906314000,-114226.1456144,0.0001168,2]
[423177437,1779906314000,-12906.8642201,0.0001168,2]
[423177436,1779906314000,-1200.0,0.00011679,2]
[423177447,1779906341000,-500.0,0.00011917,2]
[423177448,1779906341000,-1201.47,0.00012023,2]
[423177449,1779906341000,-178.23,0.0001207,2]
[423177453,1779906341000,-473.06,0.00012329,2]
[423177452,1779906341000,-2124.65,0.0001231,2]
[423177451,1779906341000,-4628.85,0.00012151,2]
[423177454,1779906341000,-26624.79061714,0.00012389,2]
[423177450,1779906341000,-437.45,0.00012075,2]
[423177456,1779906350000,-500.0,0.00012405,2]
[423177460,1779906350000,-12090.0,0.00012655,2]
[423177457,1779906350000,-449.0,0.00012575,2]
[423177458,1779906350000,-2124.65,0.00012603,2]
[423177459,1779906350000,-437.45,0.00012624,2]
[423177462,1779906350000,-227.28454168,0.00012677,2]
[423177461,1779906350000,-161.5,0.00012677,2]
[423177463,1779906350000,-200.0,0.00012813,2]
[423177464,1779906350000,-1680.0,0.00012847,2]
[423177467,1779906350000,-21118.26916119,0.00013,5]
[423177468,1779906350000,-1737.44149463,0.00013,15]
[423177466,1779906350000,-257.83,0.00012916,2]
[423177469,1779906350000,-551.0,0.00013041,2]
[423177470,1779906350000,-2425.50775553,0.0001305,2]
[423177471,1779906350000,-437.45,0.00013173,2]
[423177474,1779906350000,-500.0,0.00013233,2]
[423177472,1779906350000,-170.21,0.00013173,2]
[423177473,1779906350000,-250.0,0.00013218,2]
[423177475,1779906350000,-1405.94589868,0.00013298,2]
[423177465,1779906350000,-2124.65,0.00012896,2]
[423177455,1779906350000,-10607.38938286,0.00012389,2]
[423177476,1779906395000,-1247.6647,0.00013118,2]
[423177479,1779906448000,-551.0,0.00012795,2]
[423177480,1779906448000,-136.81473255,0.000128,4]
[423177478,1779906448000,-150.0,0.00011799,2]
[423177482,1779906501000,-195.3636,0.00011817,2]
[423177489,1779906530000,-330.0,0.00013288,3]
[423177488,1779906530000,-500.0,0.00013068,2]
[423177487,1779906530000,-163.78,0.00012915,2]
[423177485,1779906530000,-2000.0,0.00012896,2]
[423177486,1779906530000,-2800.0,0.000129,4]
[423177484,1779906530000,-990.31,0.00012872,2]
[423177483,1779906530000,-1263.18526745,0.000128,4]
[423177490,1779906531000,-164.04,0.00013291,2]
[423177492,1779906531000,-300.0,0.00013364,2]
[423177493,1779906531000,-384.79267703,0.00013365,2]
[423177494,1779906531000,-150.0,0.00013397,2]
[423177495,1779906531000,-431.26566619,0.00013397,2]
[423177496,1779906531000,-479.41649756,0.00013397,2]
[423177491,1779906531000,-2500.0,0.00013298,2]
[423177499,1779906531000,-36926.33437683,0.00013398,2]
[423177497,1779906531000,-446.50247095,0.00013397,2]
[423177502,1779906531000,-173.0,0.00013398,2]
[423177503,1779906531000,-1446926.12553565,0.00013398,2]
[423177500,1779906531000,-2710.6198954,0.00013398,2]
[423177498,1779906531000,-187.62761294,0.00013397,2]
[423177501,1779906531000,-173.0,0.00013398,2]
[423177504,1779906540000,1000.0,0.00027794,120]
[423177505,1779906554000,-10753.5784189,0.00012941,2]
[423177506,1779906554000,-173.39293332,0.00012941,2]
[423177507,1779906568000,-3857.7147307,0.00012941,2]
[423177508,1779906608000,-10753.5784189,0.00012941,2]
[423177521,1779906632000,-2500.0,0.00013298,2]
[423177525,1779906632000,-53073.87446435,0.00013398,2]
[423177531,1779906632000,-500.0,0.00013698,2]
[423177534,1779906632000,-500.0,0.00013698,2]
[423177542,1779906632000,-500.0,0.00013698,2]
[423177536,1779906632000,-500.0,0.00013698,2]
[423177544,1779906632000,-500.0,0.00013698,2]
[423177532,1779906632000,-500.0,0.00013698,2]
[423177538,1779906632000,-500.0,0.00013698,2]
[423177548,1779906632000,-500.0,0.00013698,2]
[423177550,1779906632000,-200.0,0.00013699,2]
[423177546,1779906632000,-500.0,0.00013698,2]
[423177529,1779906632000,-500.0,0.00013698,2]
[423177512,1779906632000,-300.0,0.0001294,2]
[423177527,1779906632000,-13415.32435315,0.00013598,2]
[423177519,1779906632000,-73677.43699818,0.00012941,2]
[423177526,1779906632000,-294.07205526,0.00013598,2]
[423177524,1779906632000,-1004.96835694,0.00013398,2]
[423177522,1779906632000,-200.0,0.00013361,2]
[423177528,1779906632000,-500.0,0.00013698,2]
[423177520,1779906632000,-500.0,0.00013265,2]
[423177518,1779906632000,-250.0,0.0001294,2]
[423177517,1779906632000,-500.0,0.0001294,2]
[423177515,1779906632000,-500.0,0.0001294,2]
[423177516,1779906632000,-500.0,0.0001294,2]
[423177514,1779906632000,-466.06031438,0.0001294,2]
[423177540,1779906632000,-500.0,0.00013698,2]
[423177523,1779906632000,-219.53407674,0.00013398,2]
[423177513,1779906632000,-33.93968562,0.0001294,2]
[423177552,1779906632000,-166.66,0.00013699,2]
[423177557,1779906632000,-500.0,0.00013699,2]
[423177618,1779906632000,-732.37982675,0.00014407,2]
[423177621,1779906632000,-7974.87746471,0.00014407,2]
[423177587,1779906632000,-166.66,0.0001411,2]
[423177603,1779906632000,-14154.87175355,0.00014407,2]
[423177592,1779906632000,-420.0,0.00014192,2]
[423177605,1779906632000,-2217.8025301,0.00014407,2]
[423177590,1779906632000,-9775.0,0.00014135,2]
[423177594,1779906632000,-164.04,0.0001424,2]
[423177602,1779906632000,-2000.0,0.00014407,2]
[423177600,1779906632000,-166.66,0.00014384,2]
[423177598,1779906632000,-500.0,0.00014329,2]
[423177585,1779906632000,-1184.27557025,0.00014047,2]
[423177623,1779906632000,-563.02382865,0.00014407,2]
[423177596,1779906632000,-166.66,0.00014247,2]
[423177581,1779906632000,-250.0,0.00014,2]
[423177577,1779906632000,-166.66,0.00013973,2]
[423177573,1779906632000,-4200.0,0.000139,5]
[423177571,1779906632000,-500.0,0.0001389,2]
[423177579,1779906632000,-7144.6904641,0.0001399,2]
[423177569,1779906632000,-166.66,0.00013836,2]
[423177575,1779906632000,-2457.0,0.00013956,2]
[423177563,1779906632000,-411.595,0.00013699,2]
[423177565,1779906632000,-161.5,0.00013733,2]
[423177567,1779906632000,-1454.9638,0.00013798,2]
[423177559,1779906632000,-500.0,0.00013699,2]
[423177561,1779906632000,-500.0,0.00013699,2]
[423177583,1779906632000,-530.30207749,0.00014,2]
[423177555,1779906632000,-500.0,0.00013699,2]
[423177755,1779906638000,152.0,0.00011401,7]
[423177742,1779906638000,152.0,0.00011401,7]
[423177779,1779906639000,-76.42385917,0.00014407,2]
[423177860,1779906639000,-500.0,0.00014506,2]
[423177856,1779906639000,-542.53,0.00014506,2]
[423177842,1779906639000,-500.0,0.00014506,2]
[423177852,1779906639000,-500.0,0.00014506,2]
[423177839,1779906639000,-500.0,0.00014506,2]
[423177844,1779906639000,-500.0,0.00014506,2]
[423177854,1779906639000,-500.0,0.00014506,2]
[423177850,1779906639000,-500.0,0.00014506,2]
[423177835,1779906639000,-171.94830284,0.00014506,2]
[423177837,1779906639000,-500.0,0.00014506,2]
[423177846,1779906639000,-500.0,0.00014506,2]
[423177848,1779906639000,-500.0,0.00014506,2]
[423177833,1779906639000,-175.0512305,0.00014506,2]
[423177816,1779906639000,-191.01081584,0.00014412,2]
[423177831,1779906639000,-500.0,0.00014506,2]
[423177818,1779906639000,-241.730647,0.00014504,2]
[423177829,1779906639000,-500.0,0.00014506,2]
[423177814,1779906639000,-150.0,0.00014412,2]
[423177827,1779906639000,-500.0,0.00014506,2]
[423177824,1779906639000,-500.0,0.00014506,2]
[423177822,1779906639000,-500.0,0.00014506,2]
[423177811,1779906639000,-7499.54163707,0.00014407,2]
[423177858,1779906639000,-542.53,0.00014506,2]
[423177820,1779906639000,-500.0,0.00014506,2]
[423177862,1779906639000,-500.0,0.00014506,2]
[423177919,1779906639000,-256.37043299,0.00015,2]
[423177874,1779906639000,-257.83,0.00014531,2]
[423177872,1779906639000,-2000.0,0.00014507,2]
[423177925,1779906639000,152.0,0.00027684,120]
[423177911,1779906639000,-150.0,0.00014905,2]
[423177913,1779906639000,-341062.3229722,0.00015,2]
[423177909,1779906639000,-5600.0,0.000149,5]
[423177902,1779906639000,-300.14365949,0.0001462,2]
[423177904,1779906639000,-169.47,0.00014629,2]
[423177896,1779906639000,-300.0,0.0001462,2]
[423177907,1779906639000,-161.5,0.00014789,2]
[423177900,1779906639000,-300.0,0.0001462,2]
[423177898,1779906639000,-300.0,0.0001462,2]
[423177894,1779906639000,-300.0,0.0001462,2]
[423177916,1779906639000,-1800.64878609,0.00015,2]
[423177891,1779906639000,-300.0,0.0001462,2]
[423177887,1779906639000,-600.0,0.0001462,2]
[423177885,1779906639000,-600.0,0.0001462,2]
[423177883,1779906639000,-600.0,0.0001462,2]
[423177870,1779906639000,-500.0,0.00014506,2]
[423177879,1779906639000,-206.38780908,0.0001462,2]
[423177864,1779906639000,-500.0,0.00014506,2]
[423177868,1779906639000,-500.0,0.00014506,2]
[423177877,1779906639000,-150.0,0.0001462,2]
[423177866,1779906639000,-500.0,0.00014506,2]
[423177881,1779906639000,-600.0,0.0001462,2]
[423177889,1779906639000,-600.0,0.0001462,2]
[423178011,1779906640000,-1482.8221449,0.00015,2]
[423178013,1779906640000,-7200.48412773,0.00015,2]
[423178077,1779906641000,-1034858.63207192,0.00015,2]
[423178075,1779906641000,-131224.4430047,0.00015,2]
[423178073,1779906641000,-6410.09324054,0.00015,2]
[423178071,1779906641000,-1292.17488539,0.00015,2]
[423178427,1779906643000,-151.33068582,0.00016,2]
[423178435,1779906643000,-500.0,0.0001611,2]
[423178433,1779906643000,-151.33068582,0.000161,2]
[423178431,1779906643000,-151.0,0.00016098,2]
[423178417,1779906643000,-361.45767551,0.00015565,2]
[423178415,1779906643000,-164.04,0.00015189,2]
[423178413,1779906643000,-227.0,0.00015151,2]
[423178399,1779906643000,-3083.9482,0.0001499,2]
[423178402,1779906643000,-40982.42402244,0.00015,2]
[423178411,1779906643000,-175.6,0.00015068,2]
[423178409,1779906643000,-12535.90232449,0.00015,2]
[423178397,1779906643000,-500.0,0.00014619,2]
[423178406,1779906643000,-1574.76936,0.00015,2]
[423178429,1779906643000,-536.0,0.00016041,2]
[423178404,1779906643000,-25856.96836616,0.00015,2]
[423178440,1779906643000,-2000.0,0.00016119,2]
[423178444,1779906643000,-164.04,0.00016139,2]
[423178422,1779906643000,-161.5,0.00015846,2]
[423178468,1779906643000,-420.24775119,0.00016474,2]
[423178438,1779906643000,-16310.39980233,0.0001611,15]
[423178466,1779906643000,-11991.23902084,0.00016474,2]
[423178453,1779906643000,-208.699696,0.00016287,2]
[423178451,1779906643000,-151.33068582,0.000162,2]
[423178464,1779906643000,-1569.87,0.00016474,2]
[423178447,1779906643000,-810.04800629,0.00016142,2]
[423178449,1779906643000,-257.83,0.00016146,2]
[423178460,1779906643000,-13415.32435315,0.00016459,2]
[423178455,1779906643000,-1324.3,0.00016438,2]
[423178457,1779906643000,-255.706112,0.00016438,2]
[423178420,1779906643000,-225.54232449,0.00015565,2]
[423178442,1779906643000,-250.0,0.00016139,2]
[423178425,1779906643000,-300.0,0.00016,2]
[423178462,1779906643000,-2447.82,0.00016474,2]
[423178587,1779906644000,-1689.068888,0.00016619,2]
[423178588,1779906644000,-1689.068888,0.00016619,2]
[423178605,1779906644000,-500.0,0.00016619,2]
[423178592,1779906644000,-500.0,0.00016619,2]
[423178590,1779906644000,-500.0,0.00016619,2]
[423178594,1779906644000,-500.0,0.00016619,2]
[423178596,1779906644000,-500.0,0.00016619,2]
[423178574,1779906644000,-12470.27195521,0.000165,2]
[423178580,1779906644000,-194.65393949,0.00016588,2]
[423178582,1779906644000,-1689.068888,0.00016619,2]
[423178576,1779906644000,-2294.63764005,0.000165,2]
[423178578,1779906644000,-796.0,0.00016506,2]
[423178570,1779906644000,-43257.98322797,0.00016474,2]
[423178607,1779906644000,-500.0,0.00016619,2]
[423178584,1779906644000,-1689.068888,0.00016619,2]
[423178609,1779906644000,-500.0,0.00016619,2]
[423178572,1779906644000,-6616.0719566,0.000165,2]
[423178601,1779906644000,-500.0,0.00016619,2]
[423178598,1779906644000,-500.0,0.00016619,2]
[423178635,1779906644000,-151.0,0.00016619,2]
[423178627,1779906644000,-1266.684672,0.00016619,2]
[423178633,1779906644000,-151.0,0.00016619,2]
[423178623,1779906644000,-1266.684672,0.00016619,2]
[423178631,1779906644000,-275.614806,0.00016619,2]
[423178625,1779906644000,-1266.684672,0.00016619,2]
[423178638,1779906644000,-855070.29055631,0.00016619,2]
[423178613,1779906644000,-500.0,0.00016619,2]
[423178619,1779906644000,-151.0,0.00016619,2]
[423178621,1779906644000,-151.0,0.00016619,2]
[423178615,1779906644000,-500.0,0.00016619,2]
[423178617,1779906644000,-312.932397,0.00016619,2]
[423178611,1779906644000,-500.0,0.00016619,2]
[423178602,1779906644000,-500.0,0.00016619,2]
[423178629,1779906644000,-1266.684672,0.00016619,2]
[423178680,1779906645000,-15306.69207924,0.00016619,2]
[423178647,1779906645000,-486.395,0.00016619,2]
[423178652,1779906645000,-5358.0,0.00016619,2]
[423178890,1779906646000,-4066.99536285,0.00016641,2]
[423178906,1779906646000,-500.0,0.0001678,2]
[423178902,1779906646000,-864.3,0.0001675,2]
[423178899,1779906646000,-114226.1456144,0.00016741,2]
[423178888,1779906646000,-66644.40169818,0.00016619,2]
[423178844,1779906646000,-500.0,0.00013298,2]
[423178849,1779906646000,-3069.26,0.00016619,2]
[423178846,1779906646000,-151.0,0.00016619,2]
[423178858,1779906646000,-1856.1909565,0.00016619,2]
[423178893,1779906646000,-1364.51969049,0.00016641,2]
[423178863,1779906646000,-8433.41636287,0.00016619,2]
[423178895,1779906646000,-168.02,0.00016712,2]
[423178904,1779906646000,-473.06,0.00016767,2]
[423178908,1779906646000,-500.0,0.0001678,2]
[423178897,1779906646000,-23660.442639,0.00016741,2]
[423178915,1779906646000,-500.0,0.0001678,2]
[423178913,1779906646000,-500.0,0.0001678,2]
[423178929,1779906646000,-212.38,0.00016922,2]
[423178917,1779906646000,-7100.0,0.000169,6]
[423178931,1779906646000,-521.0,0.00016922,2]
[423178919,1779906646000,-161.5,0.00016902,2]
[423178925,1779906646000,-5601.76,0.00016922,2]
[423178910,1779906646000,-500.0,0.0001678,2]
[423178923,1779906646000,-150.99,0.00016922,2]
[423178921,1779906646000,-999.99,0.00016922,2]
[423178927,1779906646000,-4999.99,0.00016922,2]
[423179023,1779906647000,-350.0,0.00018,2]
[423179016,1779906647000,-500.0,0.00017899,2]
[423179014,1779906647000,-590.15586571,0.00017899,2]
[423178994,1779906647000,-168.93882877,0.0001781,2]
[423179010,1779906647000,-500.0,0.00017899,2]
[423178999,1779906647000,-352.0,0.00017886,2]
[423178992,1779906647000,-297.0,0.0001778,2]
[423179012,1779906647000,-542.53,0.00017899,2]
[423179018,1779906647000,-93068.10606753,0.000179,2]
[423179008,1779906647000,-500.0,0.00017899,2]
[423178996,1779906647000,-168.29,0.00017866,2]
[423179025,1779906647000,-74063.72274863,0.00018,2]
[423179053,1779906647000,-500.0,0.00018533,2]
[423179029,1779906647000,-257.6363841,0.00018,2]
[423179031,1779906647000,-164.04,0.00018037,2]
[423179032,1779906647000,-1802.08437283,0.000181,2]
[423179027,1779906647000,-1207.60620475,0.00018,2]
[423179037,1779906647000,-1324.3,0.0001841,2]
[423179040,1779906647000,-186.287,0.0001841,2]
[423179047,1779906647000,-500.0,0.00018532,2]
[423179039,1779906647000,-4292.308,0.0001841,2]
[423179049,1779906647000,-500.0,0.00018533,2]
[423179051,1779906647000,-500.0,0.00018533,2]
[423179043,1779906647000,-500.0,0.00018532,2]
[423179006,1779906647000,-500.0,0.00017899,2]
[423179021,1779906647000,-213.52814154,0.0001792,2]
[423179003,1779906647000,-500.0,0.00017899,2]
[423178942,1779906647000,-5765.21,0.00016922,2]
[423178990,1779906647000,-257.83,0.0001776,2]
[423178934,1779906647000,-9999.99,0.00016922,2]
[423178936,1779906647000,-1102.76,0.00016922,2]
[423178938,1779906647000,-9999.99,0.00016922,2]
[423178940,1779906647000,-9999.99,0.00016922,2]
[423178953,1779906647000,-1197.04,0.00016922,2]
[423178948,1779906647000,-24999.99,0.00016922,2]
[423178946,1779906647000,-499.99,0.00016922,2]
[423178950,1779906647000,-73881.12,0.00016922,2]
[423178955,1779906647000,-7653.62,0.00016922,2]
[423178944,1779906647000,-9999.99,0.00016922,2]
[423178957,1779906647000,-9999.99,0.00016922,2]
[423178959,1779906647000,-299.99,0.00016922,4]
[423179001,1779906647000,-500.0,0.00017899,2]
[423178961,1779906647000,-4115.18,0.00016922,5]
[423178973,1779906647000,-168.29,0.00017158,2]
[423178975,1779906647000,-282.97,0.000175,2]
[423178977,1779906647000,-500.0,0.00017676,2]
[423178980,1779906647000,-2000.0,0.00017676,2]
[423178965,1779906647000,-1580.23,0.00016922,2]
[423178967,1779906647000,-500.0,0.00016959,2]
[423178969,1779906647000,-823.0,0.0001707,2]
[423178971,1779906647000,-164.04,0.00017088,2]
[423178982,1779906647000,-19999.99,0.00017728,2]
[423178984,1779906647000,-151.0,0.00017728,2]
[423178986,1779906647000,-151.0,0.00017728,2]
[423178988,1779906647000,-2000.0,0.00017731,2]
[423178963,1779906647000,-2132.43,0.00016922,2]
[423179045,1779906647000,-500.0,0.00018532,2]
[423179035,1779906647000,-12228.45,0.00018356,2]
[423179057,1779906647000,-500.0,0.00018533,2]
[423179116,1779906647000,-207.36570982,0.00019,2]
[423179133,1779906647000,-150.0,0.0001921,4]
[423179114,1779906647000,-589.52024451,0.00019,2]
[423179131,1779906647000,-251.318471,0.00019178,2]
[423179120,1779906647000,-5236.69426975,0.00019,2]
[423179135,1779906647000,-10000.0,0.00019239,2]
[423179137,1779906647000,-294.07205526,0.00019249,2]
[423179139,1779906647000,-353.0,0.00019256,2]
[423179152,1779906647000,-163.78,0.00019372,2]
[423179150,1779906647000,-2000.0,0.00019343,2]
[423179154,1779906647000,-257.83,0.00019375,2]
[423179156,1779906647000,-215.14439636,0.00019409,2]
[423179129,1779906647000,-151.0,0.00019178,2]
[423179141,1779906647000,-168.29,0.00019282,2]
[423179143,1779906647000,-13415.32435315,0.0001932,2]
[423179158,1779906647000,-215.14439636,0.00019409,2]
[423179145,1779906647000,-150.0,0.00019333,4]
[423179160,1779906647000,-215.14439636,0.00019409,2]
[423179162,1779906647000,-215.14439636,0.00019409,2]
[423179164,1779906647000,-215.14439636,0.00019409,2]
[423179173,1779906647000,-150.0,0.00019479,2]
[423179166,1779906647000,-150.0,0.00019457,4]
[423179175,1779906647000,-150.0,0.00019479,2]
[423179170,1779906647000,-150.0,0.00019479,2]
[423179177,1779906647000,-150.0,0.00019479,2]
[423179168,1779906647000,-150.0,0.00019479,2]
[423179147,1779906647000,-298.0,0.0001934,2]
[423179118,1779906647000,-1690.0,0.00019,2]
[423179059,1779906647000,-500.0,0.00018533,2]
[423179122,1779906647000,-150.0,0.00019086,4]
[423179061,1779906647000,-500.0,0.00018533,2]
[423179063,1779906647000,-500.0,0.00018533,2]
[423179071,1779906647000,-21371.53,0.00018533,2]
[423179073,1779906647000,-9804.4,0.00018533,2]
[423179077,1779906647000,-168.29,0.00018574,2]
[423179065,1779906647000,-500.0,0.00018533,2]
[423179067,1779906647000,-542.53,0.00018533,2]
[423179127,1779906647000,-151.0,0.00019178,2]
[423179075,1779906647000,-9999.99,0.00018533,2]
[423179083,1779906647000,-500.0,0.00018719,2]
[423179085,1779906647000,-500.0,0.0001872,2]
[423179079,1779906647000,-5000.0,0.0001862,2]
[423179081,1779906647000,-241.730647,0.00018717,2]
[423179069,1779906647000,-500.0,0.00018533,2]
[423179089,1779906647000,-605.25895332,0.0001872,2]
[423179087,1779906647000,-500.0,0.0001872,2]
[423179112,1779906647000,-63999.80498799,0.00019,2]
[423179110,1779906647000,-500.0,0.00018999,2]
[423179102,1779906647000,-150.0,0.00018962,4]
[423179096,1779906647000,-542.53,0.0001872,2]
[423179104,1779906647000,-164.04,0.00018987,2]
[423179125,1779906647000,-151.0,0.00019178,2]
[423179106,1779906647000,-500.0,0.00018999,2]
[423179099,1779906647000,-1152.0,0.00018722,2]
[423179091,1779906647000,-500.0,0.0001872,2]
[423179098,1779906647000,-500.0,0.0001872,2]
[423179094,1779906647000,-500.0,0.0001872,2]
[423179108,1779906647000,-500.0,0.00018999,2]
[423179270,1779906648000,-189.13861169,0.00019807,4]
[423179274,1779906648000,-150.0,0.00019829,4]
[423179272,1779906648000,-150.0,0.00019826,4]
[423179261,1779906648000,-189.13861169,0.00019764,4]
[423179259,1779906648000,-150.0,0.00019762,4]
[423179242,1779906648000,-150.0,0.00019703,4]
[423179247,1779906648000,-189.13861169,0.0001972,4]
[423179245,1779906648000,-150.0,0.00019705,4]
[423179240,1779906648000,-189.13861169,0.00019698,4]
[423179253,1779906648000,-189.13861169,0.00019742,4]
[423179257,1779906648000,-150.0,0.0001975,4]
[423179278,1779906648000,-150.0,0.0001985,4]
[423179299,1779906648000,-150.0,0.00019912,4]
[423179263,1779906648000,-150.0,0.00019778,4]
[423179266,1779906648000,-189.13861169,0.00019786,4]
[423179268,1779906648000,-150.0,0.00019789,4]
[423179280,1779906648000,-189.13861169,0.00019851,4]
[423179282,1779906648000,-150.0,0.00019853,4]
[423179285,1779906648000,-150.0,0.00019856,4]
[423179287,1779906648000,-189.13861169,0.00019873,4]
[423179291,1779906648000,-189.13861169,0.00019895,4]
[423179297,1779906648000,-150.0,0.00019912,4]
[423179289,1779906648000,-150.0,0.00019885,4]
[423179295,1779906648000,-1400.0,0.000199,7]
[423179293,1779906648000,-5002.08070881,0.000199,3]
[423179251,1779906648000,-150.0,0.00019739,4]
[423179276,1779906648000,-189.13861169,0.00019829,4]
[423179254,1779906648000,-150.0,0.0001975,4]
[423179194,1779906648000,-150.0,0.00019479,2]
[423179238,1779906648000,-189.13861169,0.00019676,4]
[423179308,1779906648000,-189.13861169,0.00019939,4]
[423179183,1779906648000,-150.0,0.00019479,2]
[423179181,1779906648000,-150.0,0.00019479,2]
[423179179,1779906648000,-150.0,0.00019479,2]
[423179186,1779906648000,-150.0,0.00019479,2]
[423179196,1779906648000,-189.13861169,0.00019501,4]
[423179198,1779906648000,-189.13861169,0.00019523,4]
[423179200,1779906648000,-150.0,0.00019541,4]
[423179203,1779906648000,-189.13861169,0.00019545,4]
[423179188,1779906648000,-150.0,0.00019479,2]
[423179205,1779906648000,-150.0,0.00019554,4]
[423179207,1779906648000,-150.0,0.00019566,4]
[423179192,1779906648000,-189.13861169,0.00019479,4]
[423179190,1779906648000,-239.21300105,0.00019479,2]
[423179209,1779906648000,-189.13861169,0.00019567,4]
[423179212,1779906648000,-150.0,0.00019574,4]
[423179222,1779906648000,-150.0,0.00019615,4]
[423179225,1779906648000,-150.0,0.00019629,4]
[423179227,1779906648000,-189.13861169,0.00019632,4]
[423179229,1779906648000,-150.0,0.00019653,4]
[423179214,1779906648000,-150.0,0.00019581,4]
[423179216,1779906648000,-189.13861169,0.00019589,4]
[423179231,1779906648000,-189.13861169,0.00019654,4]
[423179220,1779906648000,-189.13861169,0.00019611,4]
[423179218,1779906648000,-150.0,0.00019603,4]
[423179234,1779906648000,-150.0,0.00019665,4]
[423179236,1779906648000,-150.0,0.00019668,4]
[423179249,1779906648000,-150.0,0.00019727,4]
[423179301,1779906648000,-189.13861169,0.00019917,4]
[423179306,1779906648000,-164.04,0.00019936,2]
[423179314,1779906648000,-150.0,0.00019953,4]
[423179374,1779906648000,-542.53,0.00019985,2]
[423179378,1779906648000,-500.0,0.00019985,2]
[423179387,1779906648000,-4000.0,0.0002,2]
[423179385,1779906648000,-150.0,0.00019999,4]
[423179391,1779906648000,-154.0,0.0002,2]
[423179393,1779906648000,-3205.0,0.0002,2]